[Event "Titled Tuesday Blitz July 13 2021"]
[White "AleksanderHnydiuk"]
[Black "Kotepalli, Sai Nirupama"]
[BlackFideId "5039444"]
[WhiteElo "2597"]
[BlackElo "2455"]
[Result "1-0"]
[Round "08"]
[TimeControl "180+1"]
[Date "2021.07.13"]
[WhiteClock "0:00:07"]
[BlackClock "0:01:15"]

1. Nf3 {[%clk 0:03:00]}  Nc6 {[%clk 0:02:56]} 2. d4 {[%clk 0:02:58]}  e6 {[%clk 0:02:51]} 3. g3 {[%clk 0:02:54]}  g6 {[%clk 0:02:50]} 4. Bg2 {[%clk 0:02:53]}  Bg7 {[%clk 0:02:51]} 5. O-O {[%clk 0:02:51]}  Nge7 {[%clk 0:02:49]} 6. c4 {[%clk 0:02:49]}  d5 {[%clk 0:02:49]} 7. Nc3 {[%clk 0:02:25]}  O-O {[%clk 0:02:42]} 8. Bf4 {[%clk 0:02:12]}  dxc4 {[%clk 0:02:39]} 9. Qa4 {[%clk 0:01:43]}  Nd5 {[%clk 0:02:36]} 10. Bg5 {[%clk 0:01:30]}  f6 {[%clk 0:02:26]} 11. Bc1 {[%clk 0:01:16]}  Nb6 {[%clk 0:02:25]} 12. Qd1 {[%clk 0:01:15]}  e5 {[%clk 0:02:17]} 13. d5 {[%clk 0:01:12]}  Ne7 {[%clk 0:02:13]} 14. e4 {[%clk 0:01:09]}  f5 {[%clk 0:02:12]} 15. Ng5 {[%clk 0:01:07]}  fxe4 {[%clk 0:02:11]} 16. Bxe4 {[%clk 0:01:07]}  h6 {[%clk 0:02:08]} 17. Ne6 {[%clk 0:01:00]}  Bxe6 {[%clk 0:02:07]} 18. dxe6 {[%clk 0:01:01]}  Qxd1 {[%clk 0:02:04]} 19. Rxd1 {[%clk 0:01:02]}  c6 {[%clk 0:02:03]} 20. Be3 {[%clk 0:00:56]}  Rad8 {[%clk 0:01:56]} 21. Bc5 {[%clk 0:00:53]}  Bf6 {[%clk 0:01:51]} 22. a4 {[%clk 0:00:35]}  Kg7 {[%clk 0:01:48]} 23. a5 {[%clk 0:00:29]}  Nbd5 {[%clk 0:01:43]} 24. Bxd5 {[%clk 0:00:21]}  cxd5 {[%clk 0:01:41]} 25. Bxe7 {[%clk 0:00:20]}  Bxe7 {[%clk 0:01:41]} 26. Rxd5 {[%clk 0:00:19]}  Rxd5 {[%clk 0:01:39]} 27. Nxd5 {[%clk 0:00:20]}  Bc5 {[%clk 0:01:39]} 28. Rf1 {[%clk 0:00:18]}  Re8 {[%clk 0:01:37]} 29. Rc1 {[%clk 0:00:16]}  Rxe6 {[%clk 0:01:31]} 30. Rxc4 {[%clk 0:00:17]}  Rc6 {[%clk 0:01:31]} 31. Kg2 {[%clk 0:00:12]}  Bd4 {[%clk 0:01:26]} 32. Rxc6 {[%clk 0:00:10]}  bxc6 {[%clk 0:01:27]} 33. Nb4 {[%clk 0:00:10]}  c5 {[%clk 0:01:24]} 34. Nc6 {[%clk 0:00:10]}  c4 {[%clk 0:01:21]} 35. Nxd4 {[%clk 0:00:05]}  exd4 {[%clk 0:01:20]} 36. Kf3 {[%clk 0:00:06]}  d3 {[%clk 0:01:19]} 37. Ke3 {[%clk 0:00:06]}  Kf6 {[%clk 0:01:18]} 38. b3 {[%clk 0:00:06]}  cxb3 {[%clk 0:01:17]} 39. Kxd3 {[%clk 0:00:07]}  Ke5 {[%clk 0:01:16]} 40. Kc3 {[%clk 0:00:07]}  Ke4 {[%clk 0:01:16]} 41. f4 {[%clk 0:00:07]}  Kf3 {[%clk 0:01:16]} 42. Kxb3 {[%clk 0:00:07]}  Kg2 {[%clk 0:01:16]} 43. g4 {[%clk 0:00:07]}  Kf3 {[%clk 0:01:15]} 44. f5 {[%clk 0:00:07]} 1-0


[Site "https://www.chess.com"]

[Event "Titled Tuesday Blitz July 13 2021"]
[White "Allahverdiyeva, Ayan"]
[Black "Shuvalov, Evgenij"]
[WhiteFideId "13412590"]
[BlackFideId "4187237"]
[WhiteElo "1910"]
[BlackElo "2163"]
[Result "0-1"]
[Round "08"]
[TimeControl "180+1"]
[Date "2021.07.13"]
[WhiteClock "0:00:01"]
[BlackClock "0:00:18"]

1. e4 {[%clk 0:03:00]}  e6 {[%clk 0:02:56]} 2. d4 {[%clk 0:03:00]}  d5 {[%clk 0:02:56]} 3. Nc3 {[%clk 0:02:59]}  Bb4 {[%clk 0:02:55]} 4. exd5 {[%clk 0:02:59]}  exd5 {[%clk 0:02:55]} 5. Bd3 {[%clk 0:02:59]}  Nc6 {[%clk 0:02:54]} 6. Ne2 {[%clk 0:02:57]}  Nge7 {[%clk 0:02:52]} 7. O-O {[%clk 0:02:53]}  Bf5 {[%clk 0:02:45]} 8. Bg5 {[%clk 0:02:48]}  f6 {[%clk 0:02:41]} 9. Bf4 {[%clk 0:02:47]}  O-O {[%clk 0:02:37]} 10. a3 {[%clk 0:02:46]}  Bd6 {[%clk 0:02:32]} 11. Nb5 {[%clk 0:02:46]}  Bxf4 {[%clk 0:02:30]} 12. Nxf4 {[%clk 0:02:45]}  Re8 {[%clk 0:02:13]} 13. Re1 {[%clk 0:02:26]}  a6 {[%clk 0:02:10]} 14. Bxf5 {[%clk 0:02:11]}  Nxf5 {[%clk 0:02:02]} 15. Rxe8+ {[%clk 0:02:10]}  Qxe8 {[%clk 0:02:02]} 16. Nxc7 {[%clk 0:02:09]}  Qe4 {[%clk 0:01:53]} 17. Nxa8 {[%clk 0:02:03]}  Qxf4 {[%clk 0:01:54]} 18. Qe2 {[%clk 0:01:58]}  h6 {[%clk 0:01:39]} 19. c3 {[%clk 0:01:39]}  Na5 {[%clk 0:01:20]} 20. Qe6+ {[%clk 0:01:31]}  Kh7 {[%clk 0:01:20]} 21. Nb6 {[%clk 0:01:29]}  Nb3 {[%clk 0:01:16]} 22. Nxd5 {[%clk 0:01:19]}  Qg5 {[%clk 0:01:10]} 23. Re1 {[%clk 0:01:13]}  Nh4 {[%clk 0:01:07]} 24. Qh3 {[%clk 0:00:54]}  Nd2 {[%clk 0:01:00]} 25. Kh1 {[%clk 0:00:46]}  Nc4 {[%clk 0:00:46]} 26. Ne3 {[%clk 0:00:43]}  Nxb2 {[%clk 0:00:44]} 27. Qg4 {[%clk 0:00:29]}  Nd3 {[%clk 0:00:44]} 28. Rf1 {[%clk 0:00:29]}  Nxf2+ {[%clk 0:00:39]} 29. Rxf2 {[%clk 0:00:29]}  Qxe3 {[%clk 0:00:40]} 30. Rf1 {[%clk 0:00:29]}  g5 {[%clk 0:00:29]} 31. d5 {[%clk 0:00:22]}  f5 {[%clk 0:00:29]} 32. Qd4 {[%clk 0:00:20]}  Qe2 {[%clk 0:00:25]} 33. Qf2 {[%clk 0:00:19]}  Qe4 {[%clk 0:00:24]} 34. d6 {[%clk 0:00:19]}  Qd5 {[%clk 0:00:24]} 35. Qg3 {[%clk 0:00:09]}  f4 {[%clk 0:00:23]} 36. Qf2 {[%clk 0:00:04]}  Qxd6 {[%clk 0:00:22]} 37. Qd4 {[%clk 0:00:04]}  Qc6 {[%clk 0:00:21]} 38. Rf2 {[%clk 0:00:04]}  Kg6 {[%clk 0:00:20]} 39. Rd2 {[%clk 0:00:04]}  Kh5 {[%clk 0:00:19]} 40. Qd3 {[%clk 0:00:01]}  f3 {[%clk 0:00:18]} 41. g3 {[%clk 0:00:01]}  f2+ {[%clk 0:00:18]} 0-1


[Site "https://www.chess.com"]

[Event "Titled Tuesday Blitz July 13 2021"]
[White "Bilych, Olexiy"]
[Black "Hebden, Mark L"]
[WhiteFideId "14156504"]
[BlackFideId "400084"]
[WhiteElo "2246"]
[BlackElo "2457"]
[Result "1-0"]
[Round "08"]
[TimeControl "180+1"]
[Date "2021.07.13"]
[WhiteClock "0:00:50"]
[BlackClock "0:00:02"]

1. e4 {[%clk 0:03:00]}  e5 {[%clk 0:02:59]} 2. Nf3 {[%clk 0:03:01]}  Nc6 {[%clk 0:02:59]} 3. Bc4 {[%clk 0:02:59]}  Nf6 {[%clk 0:02:59]} 4. d3 {[%clk 0:03:00]}  Be7 {[%clk 0:02:58]} 5. O-O {[%clk 0:02:59]}  O-O {[%clk 0:02:58]} 6. a4 {[%clk 0:02:59]}  d6 {[%clk 0:02:57]} 7. a5 {[%clk 0:02:59]}  Be6 {[%clk 0:02:55]} 8. a6 {[%clk 0:02:58]}  b6 {[%clk 0:02:53]} 9. Bb5 {[%clk 0:02:58]}  Nb8 {[%clk 0:02:52]} 10. c4 {[%clk 0:02:58]}  c6 {[%clk 0:02:51]} 11. Ba4 {[%clk 0:02:58]}  Qc8 {[%clk 0:02:46]} 12. Nc3 {[%clk 0:02:52]}  Nxa6 {[%clk 0:02:26]} 13. Bxc6 {[%clk 0:02:52]}  Qxc6 {[%clk 0:02:25]} 14. Rxa6 {[%clk 0:02:52]}  Bc8 {[%clk 0:02:21]} 15. Ra1 {[%clk 0:02:51]}  h6 {[%clk 0:02:20]} 16. Be3 {[%clk 0:02:47]}  Bb7 {[%clk 0:02:17]} 17. b4 {[%clk 0:02:40]}  Qd7 {[%clk 0:02:08]} 18. b5 {[%clk 0:02:31]}  Rfc8 {[%clk 0:01:58]} 19. Ra2 {[%clk 0:02:24]}  Qc7 {[%clk 0:01:46]} 20. Qb3 {[%clk 0:02:20]}  Nd7 {[%clk 0:01:36]} 21. Rfa1 {[%clk 0:02:19]}  Qb8 {[%clk 0:01:34]} 22. Ne1 {[%clk 0:02:15]}  Nc5 {[%clk 0:01:32]} 23. Bxc5 {[%clk 0:02:16]}  dxc5 {[%clk 0:01:26]} 24. Nc2 {[%clk 0:02:15]}  Bd6 {[%clk 0:01:25]} 25. Ne3 {[%clk 0:02:15]}  Re8 {[%clk 0:01:22]} 26. Ncd5 {[%clk 0:02:13]}  Be7 {[%clk 0:01:13]} 27. Nc3 {[%clk 0:02:09]}  Bd6 {[%clk 0:01:11]} 28. Ra4 {[%clk 0:02:07]}  Re7 {[%clk 0:01:01]} 29. Qa2 {[%clk 0:02:06]}  Bc8 {[%clk 0:00:58]} 30. Ned5 {[%clk 0:02:06]}  Rb7 {[%clk 0:00:58]} 31. Ra6 {[%clk 0:01:51]}  Be6 {[%clk 0:00:47]} 32. Qe2 {[%clk 0:01:34]}  Kf8 {[%clk 0:00:46]} 33. Qh5 {[%clk 0:01:31]}  Bc7 {[%clk 0:00:44]} 34. Ne3 {[%clk 0:01:29]}  Bd8 {[%clk 0:00:43]} 35. h4 {[%clk 0:01:28]}  Qc8 {[%clk 0:00:41]} 36. Ncd5 {[%clk 0:01:26]}  f6 {[%clk 0:00:37]} 37. g3 {[%clk 0:01:25]}  Qd7 {[%clk 0:00:36]} 38. Qf3 {[%clk 0:01:21]}  Kg8 {[%clk 0:00:32]} 39. R1a3 {[%clk 0:01:21]}  Kh7 {[%clk 0:00:30]} 40. h5 {[%clk 0:01:08]}  Rab8 {[%clk 0:00:25]} 41. Nf5 {[%clk 0:01:07]}  Bxf5 {[%clk 0:00:17]} 42. exf5 {[%clk 0:01:08]}  Kg8 {[%clk 0:00:16]} 43. Qe4 {[%clk 0:01:08]}  Qf7 {[%clk 0:00:15]} 44. Qg4 {[%clk 0:01:05]}  Kf8 {[%clk 0:00:14]} 45. Ra1 {[%clk 0:01:05]}  Rd7 {[%clk 0:00:14]} 46. Re1 {[%clk 0:01:02]}  Rxd5 {[%clk 0:00:13]} 47. cxd5 {[%clk 0:01:03]}  Qxd5 {[%clk 0:00:13]} 48. Rxa7 {[%clk 0:01:03]}  Be7 {[%clk 0:00:05]} 49. Qe4 {[%clk 0:00:59]}  Rd8 {[%clk 0:00:03]} 50. Rea1 {[%clk 0:00:50]}  Qxd3 {[%clk 0:00:02]} 51. Qb7 {[%clk 0:00:50]} 1-0


[Site "https://www.chess.com"]

[Event "Titled Tuesday Blitz July 13 2021"]
[White "Costachi, Mihnea"]
[Black "Rozhkov, Viacheslav"]
[WhiteFideId "1217518"]
[BlackFideId "4181484"]
[WhiteElo "2482"]
[BlackElo "2324"]
[Result "1-0"]
[Round "08"]
[TimeControl "180+1"]
[Date "2021.07.13"]
[WhiteClock "0:02:02"]
[BlackClock "0:00:43"]

1. d4 {[%clk 0:03:00]}  d5 {[%clk 0:03:00]} 2. c4 {[%clk 0:02:59]}  dxc4 {[%clk 0:03:00]} 3. Nf3 {[%clk 0:02:59]}  Nf6 {[%clk 0:03:00]} 4. e3 {[%clk 0:03:00]}  e6 {[%clk 0:03:00]} 5. Bxc4 {[%clk 0:03:00]}  a6 {[%clk 0:03:00]} 6. O-O {[%clk 0:03:01]}  c5 {[%clk 0:03:00]} 7. Bb3 {[%clk 0:03:02]}  b5 {[%clk 0:02:57]} 8. a4 {[%clk 0:03:01]}  b4 {[%clk 0:02:58]} 9. Nbd2 {[%clk 0:03:02]}  Bb7 {[%clk 0:02:58]} 10. e4 {[%clk 0:02:57]}  Nxe4 {[%clk 0:02:53]} 11. Re1 {[%clk 0:02:52]}  Nf6 {[%clk 0:02:31]} 12. Ng5 {[%clk 0:02:50]}  Bd5 {[%clk 0:02:18]} 13. dxc5 {[%clk 0:02:49]}  Bxc5 {[%clk 0:02:13]} 14. Nde4 {[%clk 0:02:37]}  Nxe4 {[%clk 0:02:05]} 15. Nxe4 {[%clk 0:02:33]}  Bxe4 {[%clk 0:01:40]} 16. Qxd8+ {[%clk 0:02:31]}  Kxd8 {[%clk 0:01:40]} 17. Rxe4 {[%clk 0:02:31]}  Nd7 {[%clk 0:01:35]} 18. Bf4 {[%clk 0:02:26]}  h6 {[%clk 0:01:17]} 19. Rd1 {[%clk 0:02:24]}  Ke7 {[%clk 0:01:18]} 20. a5 {[%clk 0:02:16]}  Rac8 {[%clk 0:01:15]} 21. Rc4 {[%clk 0:02:04]}  Nf6 {[%clk 0:00:58]} 22. Rxc5 {[%clk 0:02:03]}  Rhd8 {[%clk 0:00:43]} 23. Rxc8 {[%clk 0:02:02]} 1-0


[Site "https://www.chess.com"]

[Event "Titled Tuesday Blitz July 13 2021"]
[White "Csonka, Balazs"]
[Black "Altman, Joshua"]
[WhiteFideId "742910"]
[BlackFideId "426210"]
[WhiteElo "2404"]
[BlackElo "1945"]
[Result "1-0"]
[Round "08"]
[TimeControl "180+1"]
[Date "2021.07.13"]
[WhiteClock "0:00:05"]
[BlackClock "0:00:14"]

1. d4 {[%clk 0:03:00]}  Nf6 {[%clk 0:02:59]} 2. Bf4 {[%clk 0:02:57]}  e6 {[%clk 0:02:59]} 3. e3 {[%clk 0:02:50]}  b6 {[%clk 0:02:53]} 4. Qf3 {[%clk 0:02:46]}  Nc6 {[%clk 0:02:52]} 5. Nc3 {[%clk 0:02:40]}  Bb7 {[%clk 0:02:52]} 6. O-O-O {[%clk 0:02:41]}  Bb4 {[%clk 0:02:49]} 7. Nge2 {[%clk 0:02:37]}  O-O {[%clk 0:02:39]} 8. a3 {[%clk 0:02:20]}  Be7 {[%clk 0:02:21]} 9. e4 {[%clk 0:02:17]}  d5 {[%clk 0:02:14]} 10. e5 {[%clk 0:02:03]}  Ne4 {[%clk 0:02:04]} 11. Nxe4 {[%clk 0:01:52]}  dxe4 {[%clk 0:02:05]} 12. Qxe4 {[%clk 0:01:48]}  Na5 {[%clk 0:02:05]} 13. Qd3 {[%clk 0:01:41]}  Qc8 {[%clk 0:01:36]} 14. Nc3 {[%clk 0:01:33]}  c5 {[%clk 0:01:33]} 15. d5 {[%clk 0:01:16]}  exd5 {[%clk 0:01:27]} 16. Nxd5 {[%clk 0:01:17]}  Bxd5 {[%clk 0:01:26]} 17. Qxd5 {[%clk 0:01:18]}  Rd8 {[%clk 0:01:25]} 18. Qf3 {[%clk 0:01:18]}  Qe6 {[%clk 0:01:18]} 19. Kb1 {[%clk 0:01:09]}  Rxd1+ {[%clk 0:01:18]} 20. Qxd1 {[%clk 0:01:10]}  Rd8 {[%clk 0:01:18]} 21. Qf3 {[%clk 0:00:56]}  c4 {[%clk 0:01:12]} 22. Be2 {[%clk 0:00:51]}  h6 {[%clk 0:01:04]} 23. Rd1 {[%clk 0:00:43]}  Rc8 {[%clk 0:00:50]} 24. Qg4 {[%clk 0:00:31]}  Qxg4 {[%clk 0:00:26]} 25. Bxg4 {[%clk 0:00:30]}  Rd8 {[%clk 0:00:26]} 26. Rxd8+ {[%clk 0:00:28]}  Bxd8 {[%clk 0:00:27]} 27. Bd7 {[%clk 0:00:18]}  Nb7 {[%clk 0:00:25]} 28. Bb5 {[%clk 0:00:15]}  Na5 {[%clk 0:00:25]} 29. Bd2 {[%clk 0:00:12]}  Bc7 {[%clk 0:00:24]} 30. f4 {[%clk 0:00:12]}  f6 {[%clk 0:00:20]} 31. exf6 {[%clk 0:00:12]}  gxf6 {[%clk 0:00:20]} 32. g3 {[%clk 0:00:12]}  Kf7 {[%clk 0:00:20]} 33. Kc1 {[%clk 0:00:11]}  Ke6 {[%clk 0:00:20]} 34. Kd1 {[%clk 0:00:04]}  Kf5 {[%clk 0:00:21]} 35. Ke2 {[%clk 0:00:05]}  Kg6 {[%clk 0:00:21]} 36. Kf3 {[%clk 0:00:04]}  Kf7 {[%clk 0:00:20]} 37. Ke4 {[%clk 0:00:04]}  Nb7 {[%clk 0:00:19]} 38. Bxc4+ {[%clk 0:00:04]}  Ke7 {[%clk 0:00:18]} 39. Bd5 {[%clk 0:00:04]}  Nc5+ {[%clk 0:00:18]} 40. Kf3 {[%clk 0:00:04]}  Nd7 {[%clk 0:00:18]} 41. c4 {[%clk 0:00:03]}  Bd6 {[%clk 0:00:19]} 42. b4 {[%clk 0:00:03]}  a5 {[%clk 0:00:19]} 43. Ke4 {[%clk 0:00:03]}  axb4 {[%clk 0:00:19]} 44. axb4 {[%clk 0:00:04]}  h5 {[%clk 0:00:16]} 45. Kf5 {[%clk 0:00:04]}  Nf8 {[%clk 0:00:15]} 46. Be3 {[%clk 0:00:03]}  Bxb4 {[%clk 0:00:16]} 47. Bxb6 {[%clk 0:00:03]}  Nd7 {[%clk 0:00:16]} 48. Bd4 {[%clk 0:00:03]}  Nc5 {[%clk 0:00:15]} 49. Kg6 {[%clk 0:00:03]}  Kf8 {[%clk 0:00:15]} 50. Bxf6 {[%clk 0:00:02]}  Nd7 {[%clk 0:00:15]} 51. Bg5 {[%clk 0:00:02]}  Bc3 {[%clk 0:00:15]} 52. Kxh5 {[%clk 0:00:02]}  Nf6+ {[%clk 0:00:15]} 53. Kg6 {[%clk 0:00:02]}  Nd7 {[%clk 0:00:15]} 54. h4 {[%clk 0:00:02]}  Nb6 {[%clk 0:00:14]} 55. h5 {[%clk 0:00:02]}  Nxd5 {[%clk 0:00:13]} 56. cxd5 {[%clk 0:00:03]}  Bd4 {[%clk 0:00:14]} 57. h6 {[%clk 0:00:04]}  Bh8 {[%clk 0:00:14]} 58. Bf6 {[%clk 0:00:04]}  Bxf6 {[%clk 0:00:14]} 59. Kxf6 {[%clk 0:00:05]} 1-0


[Site "https://www.chess.com"]

[Event "Titled Tuesday Blitz July 13 2021"]
[White "Damjanovic, Vladimir"]
[Black "deribas12345"]
[WhiteFideId "903795"]
[WhiteElo "2374"]
[BlackElo "2516"]
[Result "0-1"]
[Round "08"]
[TimeControl "180+1"]
[Date "2021.07.13"]
[WhiteClock "0:00:05"]
[BlackClock "0:00:05"]

1. e4 {[%clk 0:03:00]}  c5 {[%clk 0:02:57]} 2. Nf3 {[%clk 0:02:59]}  d6 {[%clk 0:02:56]} 3. d4 {[%clk 0:02:58]}  cxd4 {[%clk 0:02:55]} 4. Nxd4 {[%clk 0:02:59]}  Nf6 {[%clk 0:02:56]} 5. Nc3 {[%clk 0:02:58]}  a6 {[%clk 0:02:55]} 6. a4 {[%clk 0:02:55]}  e5 {[%clk 0:02:50]} 7. Nf3 {[%clk 0:02:55]}  Be7 {[%clk 0:02:49]} 8. Bg5 {[%clk 0:02:28]}  Nbd7 {[%clk 0:02:41]} 9. Bc4 {[%clk 0:02:23]}  O-O {[%clk 0:02:40]} 10. O-O {[%clk 0:02:20]}  Nc5 {[%clk 0:02:38]} 11. Bxf6 {[%clk 0:02:19]}  Bxf6 {[%clk 0:02:38]} 12. b4 {[%clk 0:02:18]}  Ne6 {[%clk 0:02:21]} 13. Nd5 {[%clk 0:02:17]}  Nf4 {[%clk 0:02:20]} 14. Nxf4 {[%clk 0:02:08]}  exf4 {[%clk 0:02:19]} 15. Ra3 {[%clk 0:02:08]}  Qb6 {[%clk 0:02:14]} 16. Qd2 {[%clk 0:02:02]}  Bg4 {[%clk 0:02:08]} 17. Qxf4 {[%clk 0:01:53]}  Qxb4 {[%clk 0:02:02]} 18. e5 {[%clk 0:01:07]}  Qxa3 {[%clk 0:01:13]} 19. exf6 {[%clk 0:01:06]}  Bh5 {[%clk 0:01:03]} 20. Nh4 {[%clk 0:01:02]}  Bg6 {[%clk 0:00:40]} 21. Qg5 {[%clk 0:00:36]}  Qc3 {[%clk 0:00:35]} 22. fxg7 {[%clk 0:00:19]}  Qxg7 {[%clk 0:00:34]} 23. Bb3 {[%clk 0:00:19]}  Rae8 {[%clk 0:00:30]} 24. Qd5 {[%clk 0:00:18]}  Qf6 {[%clk 0:00:27]} 25. g3 {[%clk 0:00:17]}  Re5 {[%clk 0:00:25]} 26. Qxb7 {[%clk 0:00:15]}  a5 {[%clk 0:00:20]} 27. f4 {[%clk 0:00:06]}  Rc5 {[%clk 0:00:18]} 28. f5 {[%clk 0:00:04]}  Bh5 {[%clk 0:00:16]} 29. Qe4 {[%clk 0:00:03]}  Kh8 {[%clk 0:00:13]} 30. Ng2 {[%clk 0:00:02]}  Re5 {[%clk 0:00:08]} 31. Qf4 {[%clk 0:00:02]}  Be2 {[%clk 0:00:08]} 32. Rf2 {[%clk 0:00:01]}  Rfe8 {[%clk 0:00:07]} 33. g4 {[%clk 0:00:01]}  Bd1 {[%clk 0:00:07]} 34. h4 {[%clk 0:00:01]}  Re1+ {[%clk 0:00:06]} 35. Kh2 {[%clk 0:00:02]}  R1e2 {[%clk 0:00:05]} 36. Rxe2 {[%clk 0:00:02]}  Rxe2 {[%clk 0:00:05]} 37. g5 {[%clk 0:00:03]}  Qe5 {[%clk 0:00:05]} 38. Qxe5+ {[%clk 0:00:03]}  Rxe5 {[%clk 0:00:05]} 39. f6 {[%clk 0:00:04]}  Kg8 {[%clk 0:00:02]} 40. Nf4 {[%clk 0:00:03]}  Kf8 {[%clk 0:00:03]} 41. Kg3 {[%clk 0:00:02]}  Rc5 {[%clk 0:00:02]} 42. Nd3 {[%clk 0:00:01]}  Rc3 {[%clk 0:00:01]} 43. Kf4 {[%clk 0:00:02]}  Bxc2 {[%clk 0:00:01]} 44. Bxc2 {[%clk 0:00:03]}  Rxc2 {[%clk 0:00:02]} 45. Ke4 {[%clk 0:00:03]}  Rc4+ {[%clk 0:00:03]} 46. Kd5 {[%clk 0:00:03]}  Rxa4 {[%clk 0:00:04]} 47. Nf2 {[%clk 0:00:02]}  Rxh4 {[%clk 0:00:04]} 48. Ne4 {[%clk 0:00:03]}  Rxe4 {[%clk 0:00:03]} 49. Kxe4 {[%clk 0:00:03]}  a4 {[%clk 0:00:04]} 50. Kd5 {[%clk 0:00:04]}  a3 {[%clk 0:00:05]} 51. Kc4 {[%clk 0:00:05]}  a2 {[%clk 0:00:05]} 0-1


[Site "https://www.chess.com"]

[Event "Titled Tuesday Blitz July 13 2021"]
[White "Derraugh, Geordie"]
[Black "Nozdrachev, Leonid"]
[WhiteFideId "2603950"]
[BlackFideId "24113433"]
[WhiteElo "2132"]
[BlackElo "2221"]
[Result "0-1"]
[Round "08"]
[TimeControl "180+1"]
[Date "2021.07.13"]
[WhiteClock "0:00:44"]
[BlackClock "0:01:29"]

1. e4 {[%clk 0:02:56]}  d6 {[%clk 0:03:00]} 2. d4 {[%clk 0:02:56]}  Nf6 {[%clk 0:02:58]} 3. Nc3 {[%clk 0:02:56]}  e5 {[%clk 0:02:59]} 4. Nf3 {[%clk 0:02:56]}  Nbd7 {[%clk 0:02:58]} 5. Bg5 {[%clk 0:02:54]}  Be7 {[%clk 0:02:59]} 6. Qd2 {[%clk 0:02:55]}  O-O {[%clk 0:02:59]} 7. O-O-O {[%clk 0:02:55]}  c6 {[%clk 0:02:51]} 8. h4 {[%clk 0:02:53]}  b5 {[%clk 0:02:50]} 9. dxe5 {[%clk 0:02:52]}  dxe5 {[%clk 0:02:42]} 10. Bd3 {[%clk 0:02:47]}  b4 {[%clk 0:02:42]} 11. Ne2 {[%clk 0:02:46]}  c5 {[%clk 0:02:37]} 12. h5 {[%clk 0:02:42]}  c4 {[%clk 0:02:32]} 13. Bxc4 {[%clk 0:02:37]}  Nxe4 {[%clk 0:02:31]} 14. Bxe7 {[%clk 0:02:33]}  Qxe7 {[%clk 0:02:21]} 15. Qd5 {[%clk 0:02:30]}  Nxf2 {[%clk 0:02:05]} 16. Qxa8 {[%clk 0:02:30]}  Nxh1 {[%clk 0:02:05]} 17. Rxh1 {[%clk 0:02:27]}  e4 {[%clk 0:02:03]} 18. Nd2 {[%clk 0:02:22]}  e3 {[%clk 0:02:00]} 19. Nf3 {[%clk 0:02:22]}  Nb6 {[%clk 0:01:59]} 20. Qc6 {[%clk 0:02:17]}  Bd7 {[%clk 0:01:55]} 21. Qc7 {[%clk 0:01:59]}  Rc8 {[%clk 0:01:54]} 22. Bxf7+ {[%clk 0:01:59]}  Qxf7 {[%clk 0:01:55]} 23. Qxa7 {[%clk 0:01:59]}  Na4 {[%clk 0:01:39]} 24. b3 {[%clk 0:01:10]}  Rxc2+ {[%clk 0:01:36]} 25. Kxc2 {[%clk 0:00:52]}  Bf5+ {[%clk 0:01:35]} 26. Kc1 {[%clk 0:00:45]}  Qxa7 {[%clk 0:01:36]} 27. bxa4 {[%clk 0:00:45]}  Qc5+ {[%clk 0:01:32]} 28. Kd1 {[%clk 0:00:44]}  Qc2+ {[%clk 0:01:29]} 29. Ke1 {[%clk 0:00:44]}  Qb1+ {[%clk 0:01:29]} 0-1


[Site "https://www.chess.com"]

[Event "Titled Tuesday Blitz July 13 2021"]
[White "Djordjevic, Vuk"]
[Black "Borisova, Ekaterina"]
[WhiteFideId "902098"]
[BlackFideId "34124184"]
[WhiteElo "2463"]
[BlackElo "2021"]
[Result "1-0"]
[Round "08"]
[TimeControl "180+1"]
[Date "2021.07.13"]
[WhiteClock "0:00:05"]
[BlackClock "0:00:14"]

1. d4 {[%clk 0:03:00]}  Nf6 {[%clk 0:02:54]} 2. Bg5 {[%clk 0:02:59]}  e6 {[%clk 0:02:53]} 3. e4 {[%clk 0:02:58]}  h6 {[%clk 0:02:53]} 4. Bxf6 {[%clk 0:02:58]}  Qxf6 {[%clk 0:02:53]} 5. c3 {[%clk 0:02:59]}  d6 {[%clk 0:02:53]} 6. Bd3 {[%clk 0:02:59]}  g6 {[%clk 0:02:54]} 7. Ne2 {[%clk 0:02:59]}  Bg7 {[%clk 0:02:54]} 8. O-O {[%clk 0:02:58]}  O-O {[%clk 0:02:54]} 9. f4 {[%clk 0:02:58]}  Qe7 {[%clk 0:02:53]} 10. e5 {[%clk 0:02:58]}  c5 {[%clk 0:02:48]} 11. Na3 {[%clk 0:02:45]}  b6 {[%clk 0:02:36]} 12. exd6 {[%clk 0:02:09]}  Qxd6 {[%clk 0:02:34]} 13. Be4 {[%clk 0:02:09]}  Nc6 {[%clk 0:02:34]} 14. Nb5 {[%clk 0:01:57]}  Qd7 {[%clk 0:02:30]} 15. dxc5 {[%clk 0:01:47]}  bxc5 {[%clk 0:02:27]} 16. Qxd7 {[%clk 0:01:48]}  Bxd7 {[%clk 0:02:26]} 17. Rfd1 {[%clk 0:01:46]}  Rad8 {[%clk 0:02:12]} 18. Rxd7 {[%clk 0:01:30]}  Rxd7 {[%clk 0:02:13]} 19. Bxc6 {[%clk 0:01:30]}  Rd2 {[%clk 0:02:13]} 20. Kf1 {[%clk 0:01:03]}  a6 {[%clk 0:02:13]} 21. Na3 {[%clk 0:00:57]}  Rxb2 {[%clk 0:02:10]} 22. Nc4 {[%clk 0:00:57]}  Rbb8 {[%clk 0:02:05]} 23. Rc1 {[%clk 0:00:50]}  Rfd8 {[%clk 0:02:05]} 24. Be4 {[%clk 0:00:46]}  g5 {[%clk 0:02:04]} 25. f5 {[%clk 0:00:45]}  Kf8 {[%clk 0:01:48]} 26. Ng3 {[%clk 0:00:38]}  Ke7 {[%clk 0:01:45]} 27. Ke2 {[%clk 0:00:38]}  Bh8 {[%clk 0:01:33]} 28. Nf1 {[%clk 0:00:32]}  Re8 {[%clk 0:01:29]} 29. Nfe3 {[%clk 0:00:31]}  h5 {[%clk 0:01:20]} 30. fxe6 {[%clk 0:00:28]}  fxe6 {[%clk 0:01:21]} 31. Bg6 {[%clk 0:00:27]}  Rf8 {[%clk 0:01:15]} 32. Bxh5 {[%clk 0:00:24]}  Bg7 {[%clk 0:01:16]} 33. Bg4 {[%clk 0:00:22]}  Rf4 {[%clk 0:01:13]} 34. g3 {[%clk 0:00:19]}  Rff8 {[%clk 0:01:11]} 35. Bf3 {[%clk 0:00:19]}  Rh8 {[%clk 0:01:10]} 36. Rh1 {[%clk 0:00:19]}  Bxc3 {[%clk 0:01:10]} 37. h4 {[%clk 0:00:18]}  gxh4 {[%clk 0:01:07]} 38. gxh4 {[%clk 0:00:19]}  Bd4 {[%clk 0:01:00]} 39. Nc2 {[%clk 0:00:18]}  e5 {[%clk 0:01:00]} 40. h5 {[%clk 0:00:18]}  Rh6 {[%clk 0:00:58]} 41. N2e3 {[%clk 0:00:14]}  Rf8 {[%clk 0:00:54]} 42. Ng4 {[%clk 0:00:12]}  Rh7 {[%clk 0:00:53]} 43. Ncxe5 {[%clk 0:00:10]}  Bxe5 {[%clk 0:00:50]} 44. Nxe5 {[%clk 0:00:11]}  Kf6 {[%clk 0:00:50]} 45. Nd3 {[%clk 0:00:10]}  c4 {[%clk 0:00:50]} 46. Nc5 {[%clk 0:00:10]}  Ke5 {[%clk 0:00:45]} 47. Rh4 {[%clk 0:00:09]}  Rhf7 {[%clk 0:00:41]} 48. Rh3 {[%clk 0:00:03]}  c3 {[%clk 0:00:40]} 49. Nd3+ {[%clk 0:00:02]}  Kd4 {[%clk 0:00:40]} 50. Nc1 {[%clk 0:00:02]}  Re8+ {[%clk 0:00:38]} 51. Kd1 {[%clk 0:00:02]}  Re3 {[%clk 0:00:37]} 52. Rh4+ {[%clk 0:00:02]}  Ke5 {[%clk 0:00:34]} 53. Be2 {[%clk 0:00:02]}  Rd7+ {[%clk 0:00:30]} 54. Ke1 {[%clk 0:00:03]}  c2 {[%clk 0:00:29]} 55. Kf2 {[%clk 0:00:03]}  Ra3 {[%clk 0:00:22]} 56. h6 {[%clk 0:00:03]}  Rh7 {[%clk 0:00:16]} 57. Bd3 {[%clk 0:00:03]}  Rh8 {[%clk 0:00:15]} 58. h7 {[%clk 0:00:03]}  Rc3 {[%clk 0:00:14]} 59. Ke2 {[%clk 0:00:04]}  Rc7 {[%clk 0:00:14]} 60. Kd2 {[%clk 0:00:04]}  a5 {[%clk 0:00:14]} 61. Rh5+ {[%clk 0:00:05]}  Kd4 {[%clk 0:00:14]} 62. Nb3# {[%clk 0:00:05]} 1-0


[Site "https://www.chess.com"]